bitfinex-derivatives/quotes_BTCF0:USTF0_20250926
["timestamp","ask_amount","ask_price","bid_price","bid_amount"]
[1758900177883,0.4350676,109150.0,109140.0,1.19124163]
[1758900178076,0.48184146,109160.0,109150.0,0.126047]
[1758900178077,1.34085998,109160.0,109150.0,0.126047]
[1758900178279,1.34085998,109160.0,109150.0,0.4117695]
[1758900178681,0.37961173,109160.0,109150.0,0.90339073]
[1758900179087,0.47116033,109160.0,109150.0,0.90339073]
[1758900179479,0.47116033,109160.0,109150.0,0.61766823]
[1758900179883,0.47116033,109160.0,109150.0,0.90339073]
[1758900180676,0.4523486,109160.0,109150.0,0.91239695]
[1758900180883,0.7380711,109160.0,109150.0,0.91239695]
[1758900181079,0.73639144,109160.0,109150.0,0.91239695]
[1758900181283,0.73639144,109160.0,109150.0,0.22667445]
[1758900181483,0.45066894,109160.0,109150.0,0.22667445]
[1758900181683,0.73639144,109160.0,109150.0,0.51239695]
[1758900181879,0.45066894,109160.0,109150.0,0.51239695]
[1758900182086,0.73639144,109160.0,109150.0,0.51239695]
[1758900182479,0.73639144,109160.0,109150.0,0.13511745]
[1758900182685,0.73639144,109160.0,109150.0,0.42083995]
[1758900182885,0.73639144,109160.0,109150.0,0.41183373]
[1758900183287,0.73639144,109160.0,109150.0,0.12611123]
[1758900183986,0.45066894,109160.0,109150.0,0.21766823]
[1758900184194,0.73639144,109160.0,109150.0,0.01309]
[1758900185084,1.13639144,109160.0,109150.0,0.01309]
[1758900185287,0.0915571,109150.0,109140.0,0.014]
[1758900185488,1.6058796,109150.0,109140.0,0.0354]
[1758900185692,1.6058796,109150.0,109140.0,0.014]
[1758900186379,0.7380796,109150.0,109140.0,0.014]
[1758900186585,1.67719177,109150.0,109140.0,0.0372]
[1758900187287,0.80939177,109150.0,109140.0,0.0372]
[1758900187495,1.3201571,109150.0,109140.0,0.0372]
[1758900187888,0.4523571,109150.0,109140.0,0.0372]
[1758900188088,1.3201571,109150.0,109140.0,0.1287655]
[1758900188284,0.3608,109150.0,109140.0,0.1287655]
[1758900188489,0.4523571,109150.0,109140.0,0.62038673]
[1758900188691,0.4523571,109150.0,109140.0,0.12882123]
[1758900188897,0.4523571,109150.0,109140.0,0.015]
[1758900189192,0.52487432,109150.0,109140.0,0.015]
[1758900189790,1.28190899,109150.0,109140.0,0.015]
[1758900189994,1.28190899,109150.0,109140.0,0.001]
[1758900190696,0.0915654,109140.0,109130.0,0.01406982]
[1758900190995,1.67716007,109140.0,109130.0,0.01406982]
[1758900191194,1.67716007,109140.0,109130.0,6.982e-05]
[1758900191796,2.07716007,109140.0,109130.0,6.982e-05]
[1758900192182,2.07716007,109140.0,109130.0,0.00206982]
[1758900192493,1.23208372,109140.0,109130.0,0.00206982]
[1758900192694,2.09984372,109140.0,109130.0,0.00206982]
[1758900192899,1.23208372,109140.0,109130.0,0.00206982]
[1758900193193,2.09984372,109140.0,109130.0,0.01481982]
[1758900193598,2.07716007,109140.0,109130.0,0.01481982]
[1758900194288,2.07720007,109140.0,109130.0,0.01481982]
[1758900194695,1.20940007,109140.0,109130.0,0.01481982]
[1758900195288,2.07720007,109140.0,109130.0,0.01481982]
[1758900196197,1.20940007,109140.0,109130.0,0.01481982]
[1758900196693,2.07720007,109140.0,109130.0,0.01481982]
[1758900197095,2.07716007,109140.0,109130.0,0.01481982]
[1758900197486,1.20940007,109140.0,109130.0,0.01481982]
[1758900198095,2.07716007,109140.0,109130.0,0.01481982]
[1758900198596,2.10091021,109140.0,109130.0,0.00206982]
[1758900199291,2.10091021,109140.0,109130.0,0.01481982]
[1758900200094,1.23315021,109140.0,109130.0,0.01481982]
[1758900200398,2.10091021,109140.0,109130.0,0.01481982]
[1758900200597,1.23315021,109140.0,109130.0,0.01481982]
[1758900200792,0.80940007,109140.0,109130.0,0.01481982]
[1758900200993,1.67716007,109140.0,109130.0,0.01481982]
[1758900201492,0.0915821,109120.0,109110.0,0.01275]
[1758900201701,2.03797677,109120.0,109110.0,0.01275]
[1758900201890,0.0915905,109110.0,109100.0,0.01275]
[1758900202197,0.80942517,109110.0,109100.0,0.01275]
[1758900202496,0.80950673,109110.0,109100.0,0.01275]
[1758900202695,0.80450673,109110.0,109100.0,0.01275]
[1758900203996,1.67226673,109110.0,109100.0,0.01275]
[1758900204192,1.31523206,109110.0,109100.0,0.03495]
[1758900204398,1.31523206,109110.0,109100.0,0.1265488]
[1758900204998,1.31523206,109110.0,109100.0,0.04095]
[1758900205596,1.67226673,109110.0,109100.0,0.01875]
[1758900206091,0.80450673,109110.0,109100.0,0.01875]
[1758900206291,1.67226673,109110.0,109100.0,0.04095]
[1758900206595,1.67415296,109110.0,109100.0,0.04095]
[1758900206799,0.80639296,109110.0,109100.0,0.1325488]
[1758900206997,1.67415296,109110.0,109100.0,0.1325488]
[1758900207895,0.80639296,109110.0,109100.0,0.01875]
[1758900208201,1.0922132,109110.0,109100.0,0.03988]
[1758900208399,1.9599732,109110.0,109100.0,0.03388]
[1758900208704,1.70594397,109110.0,109100.0,0.01275]
[1758900210799,1.70594397,109110.0,109100.0,0.03388]
[1758900211298,1.70594397,109110.0,109100.0,0.01275]
[1758900212297,0.83818397,109110.0,109100.0,0.01275]
[1758900212499,1.70590397,109110.0,109100.0,0.03388]
[1758900212698,0.83818397,109110.0,109100.0,0.03388]
[1758900212906,0.83818397,109110.0,109100.0,0.1254788]
[1758900213590,1.70590397,109110.0,109100.0,0.1254788]
[1758900214304,1.70590397,109110.0,109100.0,0.03388]
[1758900214995,1.70590397,109110.0,109100.0,0.01275]
[1758900215396,1.70590397,109110.0,109100.0,0.03388]
[1758900215799,1.70590397,109110.0,109100.0,0.01275]
[1758900216806,1.70590397,109110.0,109100.0,0.1254788]
[1758900217300,0.83818397,109110.0,109100.0,0.1254788]
[1758900217605,1.70586397,109110.0,109100.0,0.1254788]
[1758900217902,1.70586397,109110.0,109100.0,0.03388]
[1758900218511,0.52057272,109110.0,109100.0,0.5254788]
[1758900218703,0.52057272,109110.0,109100.0,0.84309005]
[1758900218896,1.30162222,109110.0,109100.0,0.84309005]
[1758900219206,0.94082222,109110.0,109100.0,1.29554487]
[1758900219505,0.07318222,109110.0,109100.0,1.29554487]
[1758900220007,8.156e-05,109110.0,109100.0,1.29554487]
[1758900220507,8.156e-05,109110.0,109100.0,0.89554487]
[1758900220700,8.156e-05,109110.0,109100.0,0.90304101]
[1758900220902,1.3218191,109130.0,109120.0,0.126442]
[1758900220903,0.3608,109130.0,109120.0,0.126442]
[1758900221404,0.3608,109130.0,109120.0,0.526442]
[1758900221598,0.3608,109130.0,109120.0,0.61809682]
[1758900221799,0.3608,109130.0,109120.0,0.21809682]
[1758900222697,0.3628,109130.0,109120.0,0.21809682]
[1758900223102,0.3628,109130.0,109120.0,0.22730595]
[1758900224313,0.3628,109130.0,109120.0,0.62730595]
[1758900225211,0.3628,109130.0,109120.0,0.61809682]
[1758900226809,0.4543739,109130.0,109120.0,0.61809682]
[1758900227410,0.4543739,109130.0,109120.0,0.21809682]
[1758900229309,0.3628,109130.0,109120.0,0.61809682]
[1758900231200,0.002,109130.0,109120.0,0.61809682]
[1758900231610,0.002,109130.0,109120.0,0.97889682]
[1758900232403,0.002,109130.0,109120.0,1.48561682]
[1758900233004,0.002,109130.0,109120.0,1.84641682]
[1758900233206,0.0935739,109130.0,109120.0,0.61809682]
[1758900233507,0.0935739,109130.0,109120.0,1.48557682]
[1758900233714,0.4543739,109130.0,109120.0,0.61809682]
[1758900234617,0.0935739,109130.0,109120.0,0.61809682]
[1758900234812,0.002,109130.0,109120.0,0.61809682]
[1758900235510,0.0935739,109130.0,109120.0,0.61809682]
[1758900236114,0.0915739,109130.0,109120.0,0.21809682]
[1758900236613,0.0925739,109130.0,109120.0,0.21809682]
[1758900237216,0.4533739,109130.0,109120.0,0.21809682]
[1758900237809,0.4523739,109130.0,109120.0,0.21809682]
[1758900238014,0.4543739,109130.0,109120.0,0.21809682]
[1758900240405,0.8543739,109130.0,109120.0,0.21809682]
[1758900240611,1.17183475,109130.0,109120.0,0.21809682]
[1758900240916,2.03923475,109130.0,109120.0,0.01373]
[1758900241120,2.03923475,109130.0,109120.0,0.03693]
[1758900241318,1.17183475,109130.0,109120.0,0.03693]
[1758900241518,0.8543739,109130.0,109120.0,0.1285123]
[1758900241713,1.3217339,109130.0,109120.0,0.1285123]
[1758900242017,0.4543739,109130.0,109120.0,0.03693]
[1758900242429,0.4543739,109130.0,109120.0,0.1285123]
[1758900245722,0.77183475,109130.0,109120.0,0.03693]
[1758900246022,0.77183475,109130.0,109120.0,0.01373]
[1758900246423,0.8543739,109130.0,109120.0,0.1278322]
[1758900246613,1.17183475,109130.0,109120.0,0.03625]
[1758900246814,1.17183475,109130.0,109120.0,0.01373]
[1758900247110,1.17183475,109130.0,109120.0,0.03625]
[1758900247311,1.17183475,109130.0,109120.0,0.01373]
[1758900247921,1.17183475,109130.0,109120.0,0.03625]
[1758900248522,0.402,109130.0,109120.0,0.1278323]
[1758900248718,0.86932,109130.0,109120.0,0.1278323]
[1758900248912,0.86932,109130.0,109120.0,0.44529315]
[1758900249115,0.002,109130.0,109120.0,0.53693117]
[1758900249315,0.002,109130.0,109120.0,0.93693117]
[1758900249926,0.002,109130.0,109120.0,1.29773117]
[1758900251626,0.0935739,109130.0,109120.0,0.98027032]
[1758900251820,0.002,109130.0,109120.0,1.29773117]
[1758900253720,0.002,109130.0,109120.0,0.98027032]
[1758900253924,0.002,109130.0,109120.0,1.29773117]
[1758900254126,0.0935739,109130.0,109120.0,0.58027032]
[1758900255122,0.0935739,109130.0,109120.0,0.21947032]
[1758900257441,0.002,109130.0,109120.0,0.89773117]
[1758900258231,0.002,109130.0,109120.0,1.29773117]
[1758900258432,0.002,109130.0,109120.0,0.21947032]
[1758900258433,0.4543739,109130.0,109120.0,0.21947032]
[1758900258732,0.0935739,109130.0,109120.0,0.21947032]
[1758900263135,0.002,109130.0,109120.0,0.21947032]
[1758900263328,0.002,109130.0,109120.0,0.53693117]
[1758900263529,0.002,109130.0,109120.0,0.93693117]
[1758900263736,0.002,109130.0,109120.0,1.29773117]
[1758900266528,0.002,109130.0,109120.0,0.98027032]
[1758900266838,0.002,109130.0,109120.0,1.29773117]
[1758900269435,0.002,109130.0,109120.0,2.16813117]
[1758900270344,0.002,109130.0,109120.0,1.29773117]
[1758900270544,0.002,109130.0,109120.0,2.13572707]
[1758900270839,0.002,109130.0,109120.0,2.13560707]
[1758900271638,0.002,109130.0,109120.0,0.98027032]
[1758900271843,0.002,109130.0,109120.0,2.13560707]
[1758900272743,0.07251722,109150.0,109140.0,0.1279055]
[1758900272939,0.4523496,109160.0,109150.0,0.01346]
[1758900273147,0.4523496,109160.0,109150.0,0.32187675]
[1758900273441,0.4523496,109160.0,109150.0,0.41343385]
[1758900274042,0.73788635,109160.0,109150.0,0.41343385]
[1758900274845,0.4523496,109160.0,109150.0,0.1278971]
[1758900275048,0.73788635,109160.0,109150.0,0.41343385]
[1758900275547,0.74388635,109160.0,109150.0,0.41343385]
[1758900277946,0.81725376,109160.0,109150.0,0.41343385]
[1758900278349,0.53171701,109160.0,109150.0,0.50504669]
[1758900279042,0.53171701,109160.0,109150.0,0.21950994]
[1758900279241,0.81725376,109160.0,109150.0,0.50504669]
[1758900279638,0.81725376,109160.0,109150.0,0.41348959]
[1758900279844,1.21725376,109160.0,109150.0,0.03634]
[1758900280044,1.21725376,109160.0,109150.0,0.1278971]
[1758900280447,0.81725376,109160.0,109150.0,0.03634]
[1758900281650,0.81725376,109160.0,109150.0,0.01346]
[1758900282051,0.81725376,109160.0,109150.0,0.03634]
[1758900282846,0.53171701,109160.0,109150.0,0.03634]
[1758900283050,0.81725376,109160.0,109150.0,0.03634]
[1758900283644,1.21725376,109160.0,109150.0,0.01346]
[1758900284954,1.24128147,109160.0,109150.0,0.01346]
[1758900285149,0.0915572,109150.0,109140.0,0.01346]
[1758900285346,1.60713395,109150.0,109140.0,0.01346]
[1758900285653,1.63115861,109150.0,109140.0,0.01346]
[1758900286556,2.03115861,109150.0,109140.0,0.01346]
[1758900286952,2.03071861,109150.0,109140.0,0.03634]
[1758900287257,2.03571861,109150.0,109140.0,0.03634]
[1758900287457,2.03551861,109150.0,109140.0,0.01346]
[1758900287756,2.03551861,109150.0,109140.0,0.03634]
[1758900288346,1.16691861,109150.0,109140.0,0.03634]
[1758900288755,2.03495861,109150.0,109140.0,0.03634]
[1758900289856,1.16691861,109150.0,109140.0,0.03634]
[1758900290057,2.01057395,109150.0,109140.0,0.1279055]
[1758900290454,1.14289395,109150.0,109140.0,0.03634]
[1758900290759,2.01053395,109150.0,109140.0,0.03634]
[1758900291358,1.14289395,109150.0,109140.0,0.03634]
[1758900291558,2.01045395,109150.0,109140.0,0.03634]
[1758900292958,1.14289395,109150.0,109140.0,0.03634]
[1758900293258,2.01029395,109150.0,109140.0,0.03634]
[1758900293959,1.14289395,109150.0,109140.0,0.03634]
[1758900294155,2.01029395,109150.0,109140.0,0.1279055]
[1758900294360,2.01029395,109150.0,109140.0,0.03634]
[1758900294660,2.03428897,109150.0,109140.0,0.03634]
[1758900295256,1.16688897,109150.0,109140.0,0.03634]
[1758900295556,2.03428897,109150.0,109140.0,0.03634]
[1758900295746,2.01029395,109150.0,109140.0,0.03634]
[1758900296153,2.01029395,109150.0,109140.0,0.1279055]
[1758900296856,0.4573572,109150.0,109140.0,0.41344225]
[1758900297066,1.3247572,109150.0,109140.0,0.41344225]
[1758900297751,1.61029395,109150.0,109140.0,0.41344225]
[1758900298259,0.74289395,109150.0,109140.0,0.41344225]
[1758900298561,1.3247572,109150.0,109140.0,0.41344225]
[1758900298753,0.4573572,109150.0,109140.0,0.41344225]
[1758900298958,0.9639572,109150.0,109140.0,0.50506348]
[1758900299659,0.0965572,109150.0,109140.0,0.50506348]
[1758900299861,0.9639572,109150.0,109140.0,0.50506348]
[1758900300158,0.0965572,109150.0,109140.0,0.86586348]
[1758900300360,0.9639572,109150.0,109140.0,0.86586348]
[1758900300562,0.0965572,109150.0,109140.0,0.86586348]
[1758900300761,0.0965572,109150.0,109140.0,1.15140023]
[1758900300963,0.0965572,109150.0,109140.0,0.86586348]
[1758900303267,0.0965572,109150.0,109140.0,1.15140023]
[1758900303455,0.0965572,109150.0,109140.0,1.55140023]
[1758900304865,0.005,109150.0,109140.0,1.55140023]
[1758900305362,0.005,109150.0,109140.0,2.41872023]
[1758900306567,0.3608,109170.0,109140.0,2.41872023]
[1758900306568,0.3608,109170.0,109160.0,0.1266487]
[1758900306763,0.3608,109170.0,109160.0,0.41218545]
[1758900306959,0.4523394,109180.0,109170.0,0.0915404]
[1758900307259,0.0915394,109180.0,109170.0,0.6977139]
[1758900307564,0.16408795,109180.0,109170.0,0.41217715]
[1758900308259,0.16408795,109180.0,109170.0,0.42118275]
[1758900308666,0.16408795,109180.0,109170.0,0.51277881]
[1758900308963,0.07254855,109180.0,109170.0,0.79831556]
[1758900309160,1.33818672,109190.0,109180.0,0.104132]
[1758900309365,1.3195695,109190.0,109180.0,0.41216875]
[1758900310464,0.4523295,109190.0,109180.0,0.41216875]
[1758900310763,0.46145517,109190.0,109180.0,0.41216875]
[1758900311360,0.53473653,109190.0,109180.0,0.41216875]
[1758900311564,0.53573653,109190.0,109180.0,0.41216875]
[1758900311767,0.52661086,109190.0,109180.0,0.41216875]
[1758900313963,0.43508136,109190.0,109180.0,0.50375642]
[1758900314469,0.52660506,109190.0,109180.0,0.50375642]
[1758900314669,0.43508136,109190.0,109180.0,0.50375642]
[1758900314965,0.52660506,109190.0,109180.0,0.50375642]
[1758900315360,0.43408136,109190.0,109180.0,0.50375642]
[1758900315669,0.43508136,109190.0,109180.0,0.50375642]
[1758900316474,0.52660506,109190.0,109180.0,0.50375642]
[1758900319871,0.07428136,109190.0,109180.0,0.50375642]
[1758900320169,0.16580496,109190.0,109180.0,0.50375642]
[1758900320366,0.001,109190.0,109180.0,0.90375642]
[1758900320574,0.001,109190.0,109180.0,1.26455642]
[1758900321473,0.0915114,109210.0,109200.0,0.0351]
[1758900321671,0.0915114,109210.0,109200.0,0.41215205]
[1758900322367,0.1663018,109210.0,109200.0,0.41215205]
[1758900323162,0.1663018,109210.0,109200.0,0.6976888]
[1758900323361,0.0747904,109210.0,109200.0,0.78925969]
[1758900323570,1.3191044,109220.0,109210.0,0.1266069]
[1758900323771,1.3191044,109220.0,109210.0,0.41214365]
[1758900324373,0.4523044,109220.0,109210.0,0.41214365]
[1758900326172,0.4543044,109220.0,109210.0,0.41214365]
[1758900326770,0.4543044,109220.0,109210.0,0.32063675]
[1758900326971,0.46337711,109220.0,109210.0,0.0351]
[1758900327171,0.82323644,109220.0,109210.0,0.32063675]
[1758900328078,0.82323644,109220.0,109210.0,0.0126]
[1758900328269,1.22323644,109220.0,109210.0,0.0126]
[1758900328469,1.22323644,109220.0,109200.0,0.0126]
[1758900328470,0.0915068,109210.0,109200.0,0.0126]
[1758900328677,1.60440355,109210.0,109200.0,0.0126]
[1758900328874,0.4523068,109210.0,109200.0,0.41204185]
[1758900329479,1.60436355,109210.0,109200.0,0.41204185]
[1758900329779,1.60536355,109210.0,109200.0,0.41204185]
[1758900330278,0.73884355,109210.0,109200.0,0.41204185]
[1758900330679,1.3198268,109210.0,109200.0,0.1265051]
[1758900331574,1.3198268,109210.0,109200.0,0.03499]
[1758900331976,1.63678715,109210.0,109200.0,0.03499]
[1758900332174,1.3198268,109210.0,109200.0,0.03499]
[1758900332374,1.3198268,109210.0,109200.0,0.1265051]
[1758900332577,0.0925068,109210.0,109200.0,0.44346545]
[1758900332882,0.0925068,109210.0,109200.0,0.53503634]
[1758900333684,0.0925068,109210.0,109200.0,0.93503634]
[1758900334878,0.001,109210.0,109200.0,0.93503634]
[1758900335080,0.0925067,109210.0,109200.0,1.29583634]
[1758900335278,0.001,109210.0,109200.0,1.29583634]
[1758900335585,0.0925067,109210.0,109200.0,1.29583634]
[1758900335979,0.0925067,109210.0,109200.0,0.93503634]
[1758900336687,0.0925067,109210.0,109200.0,0.03499]
[1758900336875,0.0925067,109210.0,109200.0,0.1265051]
[1758900337083,0.40946705,109210.0,109200.0,0.03499]
[1758900337284,0.11658432,109210.0,109200.0,0.03499]
[1758900337482,0.11658432,109210.0,109200.0,0.1265051]
[1758900337678,0.47738432,109210.0,109200.0,0.1265051]
[1758900338082,0.47738432,109210.0,109200.0,0.03499]
[1758900338686,0.47738432,109210.0,109200.0,0.1265051]
[1758900338990,0.47738432,109210.0,109200.0,0.0126]
[1758900339387,0.47738432,109210.0,109200.0,0.03499]
[1758900340287,0.47738432,109210.0,109200.0,0.1265051]
[1758900340486,0.47738432,109210.0,109200.0,0.03499]
[1758900340696,0.79434467,109210.0,109200.0,0.03499]
[1758900342693,0.79434467,109210.0,109200.0,0.0126]
[1758900343584,0.79434467,109210.0,109200.0,0.03499]
[1758900343789,1.66046467,109210.0,109200.0,0.03499]
[1758900343985,0.98266432,109210.0,109200.0,0.1265051]
[1758900344490,0.11658442,109210.0,109200.0,0.1265051]
[1758900344686,0.98266442,109210.0,109200.0,0.44346545]
[1758900345289,0.02507762,109210.0,109200.0,0.80426545]
[1758900345493,0.0925067,109210.0,109200.0,0.80426545]
[1758900345988,0.0925067,109210.0,109200.0,0.4873051]
[1758900346189,0.11679315,109210.0,109200.0,0.4873051]
[1758900346798,0.02528645,109210.0,109200.0,1.29583634]
[1758900347193,0.001,109210.0,109200.0,1.29583634]
[1758900349298,0.001,109210.0,109200.0,2.16175634]
[1758900349796,0.3608,109230.0,109210.0,0.0915051]
[1758900350099,0.02412179,109230.0,109220.0,0.44444875]
[1758900350290,1.3182038,109240.0,109230.0,0.12748]
[1758900350493,1.34223453,109240.0,109230.0,0.12748]
[1758900350989,0.47631453,109240.0,109230.0,1.62748]
[1758900351740,0.54770372,109240.0,109230.0,1.62748]
[1758900352113,0.55270372,109240.0,109230.0,1.53599]
[1758900353296,0.86966407,109240.0,109230.0,1.53599]
[1758900353796,0.55270372,109240.0,109230.0,1.53599]
[1758900356398,0.55270372,109240.0,109230.0,1.6274801]
[1758900358596,1.41830372,109240.0,109230.0,1.6274801]
[1758900359499,1.39423079,109240.0,109230.0,1.6274801]
[1758900359894,0.55266525,109240.0,109230.0,1.6274801]
[1758900360099,1.41818525,109240.0,109230.0,1.6274801]
[1758900361199,1.39419079,109240.0,109230.0,1.6274801]
[1758900362691,0.52867079,109240.0,109230.0,1.6274801]
[1758900362898,0.43718919,109240.0,109230.0,1.94444045]
[1758900363096,0.43718919,109240.0,109230.0,2.03598619]
[1758900363599,0.07638919,109240.0,109230.0,2.79678619]
[1758900365505,0.005,109240.0,109230.0,2.79678619]
[1758900367806,0.4522739,109250.0,109240.0,0.1259218]
[1758900368008,0.3608,109250.0,109240.0,0.1259218]
[1758900368399,0.3608,109250.0,109240.0,0.21745917]
[1758900368798,0.3608,109250.0,109240.0,0.53441952]
[1758900369199,0.3608,109250.0,109240.0,0.19597917]
[1758900369200,0.52644627,109250.0,109240.0,0.19597917]
[1758900369402,0.84340662,109250.0,109240.0,0.1259218]
[1758900369710,0.52644627,109250.0,109240.0,0.1259218]
[1758900369911,0.84340662,109250.0,109240.0,0.1259218]
[1758900370215,0.43497287,109250.0,109240.0,0.1259218]
[1758900370706,0.52644627,109250.0,109240.0,0.1259218]
[1758900373213,0.43497287,109250.0,109240.0,0.1259218]
[1758900374914,0.43497287,109250.0,109240.0,0.21745917]
[1758900376506,0.07417287,109250.0,109240.0,0.53441952]
[1758900377416,0.07417287,109250.0,109240.0,1.29521952]
[1758900377723,0.002,109250.0,109240.0,1.29521952]
[1758900378323,0.43437886,109270.0,109260.0,0.03444]
[1758900378510,0.07357886,109270.0,109260.0,0.35140035]
[1758900378711,1.0824484,109280.0,109270.0,0.1044167]
[1758900378910,1.0824484,109280.0,109270.0,0.1258967]
[1758900379120,0.4522484,109280.0,109270.0,0.1258967]
[1758900379921,0.4522484,109280.0,109270.0,0.53436928]
[1758900379922,0.3608,109280.0,109270.0,0.53436928]
[1758900380118,0.4522483,109280.0,109270.0,0.53436928]
[1758900380420,0.4522483,109280.0,109270.0,0.21740893]
[1758900381413,0.4582483,109280.0,109270.0,0.21740893]
[1758900382214,0.4522483,109280.0,109270.0,0.21740893]
[1758900382414,0.003,109280.0,109270.0,0.21740893]
[1758900382612,0.07488972,109280.0,109270.0,0.89516928]
[1758900382916,0.003,109280.0,109270.0,0.89516928]
[1758900383522,0.0944482,109280.0,109270.0,0.89516928]
[1758900383821,0.0944482,109280.0,109270.0,1.76512928]
[1758900384024,0.0944482,109280.0,109270.0,1.76500928]
[1758900384519,0.4552482,109280.0,109270.0,0.99567223]
[1758900384725,0.4552482,109280.0,109270.0,0.12595223]
[1758900385032,0.4552482,109280.0,109270.0,0.99543223]
[1758900385836,0.4552482,109280.0,109270.0,0.12595223]
[1758900386040,0.4552482,109280.0,109270.0,0.99507223]
[1758900386335,0.4552482,109280.0,109270.0,0.21740883]
[1758900386532,0.4552482,109280.0,109270.0,1.08640883]
[1758900386733,0.4552482,109280.0,109270.0,0.21740883]
[1758900387232,0.52887889,109280.0,109270.0,0.21740883]
[1758900388634,0.52887889,109280.0,109270.0,0.53436918]
[1758900390439,0.52887889,109280.0,109270.0,0.21740883]
[1758900390627,0.52887889,109280.0,109270.0,0.21740873]
[1758900391941,0.43743069,109280.0,109270.0,0.53436908]
[1758900392638,0.43743069,109280.0,109270.0,0.50222462]
[1758900393138,0.003,109280.0,109270.0,1.26302462]
[1758900397036,0.07491851,109290.0,109280.0,0.1273682]
[1758900397241,0.46135809,109300.0,109290.0,0.1273598]
[1758900397448,0.46135809,109300.0,109290.0,0.41217569]
[1758900399643,0.46135809,109300.0,109290.0,0.1273598]
[1758900399644,0.74617398,109300.0,109290.0,0.1273598]
[1758900400139,0.74617398,109300.0,109290.0,0.1273599]
[1758900400635,0.74917398,109300.0,109290.0,0.1273599]
[1758900401336,0.82403462,109300.0,109290.0,0.1273599]
[1758900401536,0.56299492,109300.0,109290.0,0.41217579]
[1758900401741,0.43870064,109300.0,109290.0,0.41217579]
[1758900402543,0.43870064,109300.0,109290.0,0.1273599]
[1758900402741,0.43870064,109300.0,109290.0,0.41217579]
[1758900403342,0.53013224,109300.0,109290.0,0.41217579]
[1758900403844,0.43870064,109300.0,109290.0,0.41217579]
[1758900405243,0.55393833,109300.0,109290.0,0.41217579]
[1758900405439,0.55093833,109300.0,109290.0,0.41217579]
[1758900405639,0.83775422,109300.0,109290.0,0.41217579]
[1758900406539,0.74632262,109300.0,109290.0,0.41217579]
[1758900406943,0.83775432,109300.0,109290.0,0.41217579]
[1758900407137,0.55293843,109300.0,109290.0,0.41217579]
[1758900407337,0.83775432,109300.0,109290.0,0.41217579]
[1758900408646,0.83775432,109300.0,109290.0,0.1273599]
[1758900408845,0.83775432,109300.0,109290.0,0.41217579]
[1758900409947,0.83775432,109300.0,109290.0,0.1273599]
[1758900410148,0.83775432,109300.0,109290.0,0.41217579]
[1758900411649,1.70283432,109300.0,109290.0,0.41217579]
[1758900413152,1.70283432,109300.0,109290.0,0.01278]
[1758900413748,1.70283432,109300.0,109290.0,0.12736]
[1758900414349,1.70283432,109300.0,109290.0,0.41217589]
[1758900414949,1.70283432,109300.0,109290.0,0.12736]
[1758900415342,0.83775432,109300.0,109290.0,0.03592]
[1758900415548,0.83775432,109300.0,109290.0,0.12736]
[1758900415744,1.70279432,109300.0,109290.0,0.12736]
[1758900416751,1.70279432,109300.0,109290.0,0.03592]
[1758900417246,0.83775432,109300.0,109290.0,0.03592]
[1758900417447,0.83775432,109300.0,109290.0,0.12736]
[1758900417746,0.83775432,109300.0,109290.0,0.41217589]
[1758900418247,1.70275432,109300.0,109290.0,0.41217589]
[1758900418442,0.83775432,109300.0,109290.0,0.41217589]
[1758900418752,1.41793843,109300.0,109290.0,0.41217589]
[1758900419353,0.55293843,109300.0,109290.0,0.41217589]
[1758900419750,1.41789843,109300.0,109290.0,0.41217589]
[1758900420647,0.55293843,109300.0,109290.0,0.41217589]
[1758900421048,1.41789843,109300.0,109290.0,0.41217589]
[1758900421452,1.41789843,109300.0,109290.0,0.03384]
[1758900421652,1.70271432,109300.0,109290.0,0.03384]
[1758900422247,2.10271432,109300.0,109290.0,0.12528]
[1758900422447,2.10271432,109300.0,109290.0,0.03384]
[1758900423555,2.10271432,109300.0,109290.0,0.12528]
[1758900424152,1.23775432,109300.0,109290.0,0.41009589]
[1758900424351,2.10267432,109300.0,109290.0,0.41009589]
[1758900425555,2.10263432,109300.0,109290.0,0.41009589]
[1758900426353,2.10263432,109300.0,109290.0,0.12528]
[1758900426554,2.10263432,109300.0,109290.0,0.41009589]
[1758900426958,2.10263432,109300.0,109290.0,0.03384]
[1758900427261,2.10263432,109300.0,109290.0,0.01278]
[1758900427556,0.95293843,109300.0,109290.0,0.12562]
[1758900427759,2.10259432,109300.0,109290.0,0.03418]
[1758900427963,2.10259432,109300.0,109290.0,0.01278]
[1758900430162,2.10255432,109300.0,109290.0,0.01278]
[1758900431065,1.23775432,109300.0,109290.0,0.01278]
[1758900431265,2.10251432,109300.0,109290.0,0.01278]
[1758900432165,2.10251432,109300.0,109290.0,0.03418]
[1758900432360,1.23775432,109300.0,109290.0,0.01278]
[1758900432558,2.10251432,109300.0,109290.0,0.12562]
[1758900433168,2.10251432,109300.0,109290.0,0.03418]
[1758900433370,2.10251432,109300.0,109290.0,0.01278]
[1758900435357,1.23775432,109300.0,109290.0,0.01278]
[1758900435756,2.10247432,109300.0,109290.0,0.01278]
[1758900438875,1.23775432,109300.0,109290.0,0.01278]
[1758900439174,2.10243432,109300.0,109290.0,0.01278]
[1758900439673,2.10239432,109300.0,109290.0,0.03418]
[1758900440175,2.10239432,109300.0,109290.0,0.01278]
[1758900441472,1.23775432,109300.0,109290.0,0.01278]
[1758900441773,2.10235432,109300.0,109290.0,0.01278]
[1758900444076,2.10235432,109300.0,109290.0,0.03418]
[1758900444576,1.23775432,109300.0,109290.0,0.03418]
[1758900444877,2.10231432,109300.0,109290.0,0.03418]
[1758900445973,2.10231432,109300.0,109290.0,0.01278]
[1758900448980,2.12117364,109300.0,109290.0,0.01278]
[1758900449183,2.10231432,109300.0,109290.0,0.01278]
[1758900452781,2.10231432,109300.0,109290.0,0.03476]
[1758900453282,1.81749843,109300.0,109290.0,0.01278]
[1758900454674,1.26944882,109300.0,109290.0,0.01278]
[1758900454874,2.13368882,109300.0,109290.0,0.01278]
[1758900456288,1.26944882,109300.0,109290.0,0.1042201]
[1758900456476,2.13364882,109300.0,109290.0,0.1262001]
[1758900456877,2.13360882,109300.0,109290.0,0.1262001]
[1758900457682,2.13360882,109300.0,109290.0,0.01278]
[1758900458377,0.95293843,109300.0,109290.0,0.1262002]
[1758900458783,0.46150673,109300.0,109290.0,0.44271059]
[1758900458983,1.32558673,109300.0,109290.0,0.84271059]
[1758900459380,1.30178064,109300.0,109290.0,0.84271059]
[1758900459686,1.30178064,109300.0,109290.0,0.44271059]
[1758900460281,1.30178064,109300.0,109290.0,0.39876616]
[1758900460477,1.29974064,109300.0,109290.0,0.39876616]
[1758900460677,0.43570064,109300.0,109290.0,0.89026165]
[1758900460881,0.07490064,109300.0,109290.0,1.25996843]
[1758900461786,0.07490064,109300.0,109290.0,0.85996843]